lending/lending_fUSD_20260306
["ID","MTS","AMOUNT","RATE_DAILY","PERIOD"]
[407798003,1772808637466,-1640.22302016,0.000158,2]
[407798004,1772808637479,-4626.7653448,0.000158,2]
[407798005,1772808637491,-3603.10956606,0.000158,2]
[407798006,1772808637503,-290.05035818,0.000158,2]
[407798007,1772808637517,-1853.01721056,0.000158,2]
[407798008,1772808637529,-11887.85568155,0.000158,2]
[407798009,1772808637540,-2447.79749647,0.000158,2]
[407798010,1772808637573,-2469697.42132162,0.000158,2]
[407798011,1772808637582,-297384.13348873,0.00016323,2]
[407798012,1772808637591,-5000.0,0.00016323,2]
[407798013,1772808637600,-312.91190959,0.00016324,2]
[407798014,1772808637610,-171.43380904,0.00016324,2]
[407798015,1772808637619,-2725.86108145,0.00016324,2]
[407798016,1772808637628,-746.5079976,0.00016324,2]
[407798017,1772808637639,-157.40983265,0.00016324,2]
[407798018,1772808637648,-324.34577347,0.00016332,2]
[407798019,1772808637658,-150.0,0.00016396,2]
[407798020,1772808637668,-150.0,0.00016396,2]
[407798021,1772808637677,-2000.0,0.000164,2]
[407798022,1772808637686,-355.08533532,0.00016413,2]
[407798023,1772808637695,-200.0,0.00016413,2]
[407798024,1772808637704,-151.0,0.00016413,2]
[407798025,1772808637714,-151.0,0.00016413,2]
[407798026,1772808637724,-151.0,0.00016413,2]
[407798027,1772808637733,-151.0,0.00016413,2]
[407798028,1772808637742,-151.0,0.00016413,2]
[407798029,1772808637751,-151.0,0.00016413,2]
[407798030,1772808637760,-151.0,0.00016413,2]
[407798031,1772808637773,-151.0,0.00016413,2]
[407798032,1772808637783,-151.0,0.00016413,2]
[407798033,1772808637792,-151.0,0.00016413,2]
[407798034,1772808637801,-151.0,0.00016413,2]
[407798035,1772808637810,-151.0,0.0001642,2]
[407798036,1772808637819,-358.98116355,0.00016421,2]
[407798037,1772808637828,-10131.76461693,0.00016422,2]
[407798038,1772808637836,-500.0,0.00016422,2]
[407798039,1772808637846,-500.0,0.00016422,2]
[407798041,1772808637855,-500.0,0.00016422,2]
[407798043,1772808637864,-500.0,0.00016422,2]
[407798045,1772808637873,-500.0,0.00016422,2]
[407798047,1772808637887,-500.0,0.00016422,2]
[407798048,1772808637896,-641.1882162,0.00016422,2]
[407798049,1772808637905,-500.0,0.00016424,2]
[407798050,1772808637914,-228.32,0.00016438,2]
[407798051,1772808637924,-500.0,0.00016473,2]
[407798052,1772808637934,-446.12402339,0.00016473,2]
[407798053,1772808637943,-500.62982044,0.00016473,2]
[407798054,1772808637952,-500.0,0.00016473,2]
[407798055,1772808637962,-500.0,0.00016473,2]
[407798056,1772808637972,-500.0,0.00016473,2]
[407798057,1772808637981,-500.0,0.00016473,2]
[407798058,1772808637991,-500.0,0.00016473,2]
[407798059,1772808638000,-556.1229892,0.00016473,2]
[407798060,1772808638009,-500.0,0.00016473,2]
[407798061,1772808638021,-500.0,0.00016473,2]
[407798062,1772808638030,-449.5306254,0.00016473,2]
[407798063,1772808638039,-530.88059829,0.00016473,2]
[407798064,1772808638049,-300.0,0.00016481,2]
[407798065,1772808638060,-500.0,0.0001649,2]
[407798066,1772808638070,-500.0,0.0001649,2]
[407798067,1772808638079,-150.0,0.0001649,2]
[407798068,1772808638090,-500.0,0.0001649,2]
[407798069,1772808638098,-500.0,0.0001649,2]
[407798070,1772808638107,-500.0,0.0001649,2]
[407798071,1772808638116,-500.0,0.0001649,2]
[407798072,1772808638127,-150.0,0.0001649,2]
[407798073,1772808638137,-228.20561973,0.0001649,2]
[407798074,1772808638147,-500.0,0.0001649,2]
[407798075,1772808638156,-800.0,0.0001649,2]
[407798076,1772808638165,-500.0,0.0001649,2]
[407798077,1772808638175,-150.0,0.0001649,2]
[407798078,1772808638184,-500.0,0.0001649,2]
[407798079,1772808638193,-431.0,0.0001649,2]
[407798080,1772808638203,-1139.0,0.0001649,2]
[407798081,1772808638212,-500.0,0.0001649,2]
[407798082,1772808638221,-500.0,0.0001649,2]
[407798083,1772808638230,-1376.0,0.0001649,2]
[407798084,1772808638241,-524.0,0.0001649,2]
[407798085,1772808638251,-5000.0,0.000165,2]
[407798086,1772808638261,-2000.0,0.000165,2]
[407798087,1772808638274,-600.0,0.00016533,2]
[407798088,1772808638283,-200.0,0.00016533,2]
[407798089,1772808638292,-300.0,0.00016533,2]
[407798090,1772808638301,-500.0,0.00016533,2]
[407798091,1772808638311,-5000.0,0.00016533,2]
[407798092,1772808638320,-600.0,0.00016533,2]
[407798093,1772808638329,-10932.77401097,0.00016543,2]
[407798094,1772808638339,-1680.0,0.00016565,2]
[407798095,1772808638349,-152.98792199,0.00016598,2]
[407798096,1772808638359,-2000.0,0.000166,2]
[407798097,1772808638369,-11718.12057429,0.00016632,2]
[407798098,1772808638379,-185.0,0.00016643,2]
[407798099,1772808638388,-300.0,0.00016643,2]
[407798100,1772808638399,-300.27779023,0.00016669,2]
[407798101,1772808638410,-5000.0,0.00016669,2]
[407798102,1772808638419,-250.0,0.00016669,2]
[407798103,1772808638428,-1321.53,0.00016669,2]
[407798104,1772808638440,-150.0,0.0001667,2]
[407798105,1772808638451,-6001.0737,0.00016698,2]
[407798106,1772808638461,-1000.0,0.00016698,2]
[407798107,1772808638470,-500.0,0.00016698,2]
[407798108,1772808638480,-2000.0,0.000167,2]
[407798109,1772808638490,-600.0,0.00016703,2]
[407798110,1772808638499,-203.71480102,0.00016703,2]
[407798111,1772808638509,-600.0,0.00016703,2]
[407798112,1772808638521,-300.0,0.00016703,2]
[407798113,1772808638530,-300.0,0.00016703,2]
[407798114,1772808638540,-166.34,0.00016712,2]
[407798115,1772808638550,-2500.0,0.00016732,2]
[407798116,1772808638560,-2500.0,0.00016732,2]
[407798117,1772808638569,-2500.0,0.00016732,2]
[407798118,1772808638579,-2500.0,0.00016732,2]
[407798119,1772808638588,-2500.0,0.00016732,2]
[407798120,1772808638597,-3998.76322387,0.00016732,2]
[407798121,1772808638607,-1531.5137837,0.00016748,2]
[407798122,1772808638616,-500.0,0.00016764,2]
[407798123,1772808638626,-500.0,0.00016764,2]
[407798124,1772808638635,-160.97642414,0.00016764,2]
[407798125,1772808638644,-500.0,0.00016764,2]
[407798126,1772808638653,-500.0,0.00016764,2]
[407798127,1772808638663,-500.0,0.00016764,2]
[407798128,1772808638671,-500.0,0.00016764,2]
[407798129,1772808638681,-150.0,0.00016764,2]
[407798130,1772808638690,-500.0,0.00016764,2]
[407798131,1772808638700,-800.0,0.00016764,2]
[407798132,1772808638709,-408.6738188,0.00016764,2]
[407798133,1772808638720,-500.0,0.00016764,2]
[407798134,1772808638729,-431.0,0.00016764,2]
[407798135,1772808638738,-1139.0,0.00016764,2]
[407798136,1772808638747,-500.0,0.00016764,2]
[407798137,1772808638756,-500.0,0.00016764,2]
[407798138,1772808638767,-1376.0,0.00016764,2]
[407798139,1772808638776,-524.0,0.00016764,2]
[407798140,1772808638785,-907.21,0.00016789,2]
[407798141,1772808638795,-907.21,0.00016789,30]
[407798142,1772808638805,-2000.0,0.00016794,2]
[407798143,1772808638814,-500.0,0.00016798,2]
[407798144,1772808638823,-500.0,0.00016798,2]
[407798145,1772808638832,-500.0,0.00016798,2]
[407798146,1772808638841,-500.0,0.00016798,2]
[407798147,1772808638851,-500.0,0.00016798,2]
[407798148,1772808638860,-500.0,0.00016798,2]
[407798149,1772808638870,-500.9565902,0.00016798,2]
[407798150,1772808638880,-682.34,0.00016798,2]
[407798151,1772808638892,-682.34,0.00016798,2]
[407798152,1772808638901,-682.34,0.00016798,2]
[407798153,1772808638911,-682.34,0.00016798,2]
[407798154,1772808638920,-682.34,0.00016798,2]
[407798155,1772808638931,-682.34,0.00016798,2]
[407798156,1772808638941,-682.34,0.00016798,2]
[407798157,1772808638954,-682.34,0.00016798,2]
[407798158,1772808638964,-682.34,0.00016798,2]
[407798159,1772808638974,-682.34,0.00016798,2]
[407798160,1772808638983,-682.34,0.00016798,2]
[407798161,1772808638993,-500.0,0.00016798,2]
[407798162,1772808639004,-500.0,0.00016798,2]
[407798163,1772808639013,-500.0,0.00016798,2]
[407798164,1772808639024,-500.0,0.00016798,2]
[407798165,1772808639033,-500.0,0.00016798,2]
[407798166,1772808639043,-500.0,0.00016798,2]
[407798167,1772808639054,-500.0,0.00016798,2]
[407798168,1772808639063,-500.0,0.00016798,2]
[407798169,1772808639074,-500.0,0.00016798,2]
[407798170,1772808639084,-500.0,0.00016798,2]
[407798171,1772808639094,-500.0,0.00016798,2]
[407798172,1772808639105,-2000.0,0.000168,2]
[407798173,1772808639115,-162.32,0.000169,2]
[407798174,1772808639125,-2000.0,0.000169,2]
[407798175,1772808639134,-2000.0,0.000169,2]
[407798176,1772808639145,-150.0,0.00016944,2]
[407798177,1772808639155,-237.29585287,0.00016961,2]
[407798178,1772808639166,-10932.77401097,0.00016962,2]
[407798179,1772808639176,-500.0,0.00016972,2]
[407798180,1772808639185,-300.0,0.00017,2]
[407798181,1772808639195,-10000.0,0.00017,2]
[407798182,1772808639205,-1500.0,0.00017,2]
[407798183,1772808639215,-2800.840232,0.00017,2]
[407798184,1772808639226,-179.45599622,0.00017,2]
[407798185,1772808639236,-151.0,0.00017,2]
[407798186,1772808639246,-436.48,0.00017,2]
[407798187,1772808639267,-436.47,0.00017,2]
[407798188,1772808639278,-436.47,0.00017,7]
[407798189,1772808639288,-1000.0,0.00017021,2]
[407798190,1772808639299,-1000.0,0.00017021,2]
[407798191,1772808639308,-1000.0,0.00017021,2]
[407798192,1772808639318,-705.88057451,0.00017021,2]
[407798193,1772808639327,-1000.0,0.00017021,2]
[407798194,1772808639337,-1000.0,0.00017021,2]
[407798195,1772808639347,-1000.0,0.00017021,2]
[407798196,1772808639357,-1000.0,0.00017021,2]
[407798197,1772808639367,-500.0,0.00017038,2]
[407798198,1772808639376,-500.0,0.00017038,2]
[407798199,1772808639386,-500.0,0.00017038,2]
[407798200,1772808639396,-500.0,0.00017038,2]
[407798201,1772808639406,-500.0,0.00017038,2]
[407798202,1772808639416,-500.0,0.00017038,2]
[407798203,1772808639426,-800.0,0.00017038,2]
[407798204,1772808639435,-500.0,0.00017038,2]
[407798205,1772808639446,-431.0,0.00017038,2]
[407798206,1772808639456,-1139.0,0.00017038,2]
[407798207,1772808639466,-500.0,0.00017038,2]
[407798208,1772808639476,-500.0,0.00017038,2]
[407798209,1772808639485,-1376.0,0.00017038,2]
[407798210,1772808639495,-524.0,0.00017038,2]
[407798211,1772808639504,-746.50799756,0.00017039,2]
[407798212,1772808639514,-11718.12057429,0.0001704,2]
[407798213,1772808639525,-500.0,0.00017041,2]
[407798214,1772808639535,-500.0,0.00017158,2]
[407798215,1772808639544,-301.78790722,0.00017158,2]
[407798216,1772808639554,-150.0,0.00017218,2]
[407798217,1772808639564,-500.0,0.00017246,2]
[407798218,1772808639573,-935.0,0.00017251,2]
[407798219,1772808639583,-500.0,0.00017312,2]
[407798220,1772808639593,-500.0,0.00017312,2]
[407798221,1772808639602,-500.0,0.00017312,2]
[407798222,1772808639612,-500.0,0.00017312,2]
[407798223,1772808639626,-500.0,0.00017312,2]
[407798224,1772808639636,-356.19330676,0.00017312,2]
[407798229,1772808639646,-800.0,0.00017312,2]
[407798232,1772808639656,-500.0,0.00017312,2]
[407798234,1772808639666,-431.0,0.00017312,2]
[407798235,1772808639676,-1139.0,0.00017312,2]
[407798236,1772808639685,-500.0,0.00017312,2]
[407798238,1772808639695,-1376.0,0.00017312,2]
[407798239,1772808639705,-500.0,0.00017312,2]
[407798240,1772808639715,-524.0,0.00017312,2]
[407798241,1772808639725,-500.0,0.00017325,2]
[407798242,1772808639734,-707.0,0.00017325,2]
[407798243,1772808639744,-500.0,0.00017325,2]
[407798244,1772808639753,-2178.0,0.00017325,2]
[407798245,1772808639763,-999.0,0.00017325,2]
[407798246,1772808639776,-500.0,0.00017325,2]
[407798247,1772808639786,-150.0,0.00017325,2]
[407798248,1772808639795,-964.0,0.00017325,2]
[407798249,1772808639805,-150.0,0.00017325,2]
[407798250,1772808639816,-500.0,0.00017325,2]
[407798251,1772808639826,-150.0,0.00017325,2]
[407798252,1772808639835,-1220.0,0.00017325,2]
[407798253,1772808639846,-2500.0,0.00017342,2]
[407798254,1772808639862,-1321.53,0.00017427,2]
[407798255,1772808639873,-11718.12057429,0.00017449,2]
[407798260,1772808640300,-500.0,0.0001745,2]
[407798261,1772808640328,-500.0,0.0001745,2]
[407798262,1772808640337,-500.0,0.0001745,2]
[407798263,1772808640347,-500.0,0.00017487,2]
[407798264,1772808640357,-500.0,0.00017489,2]
[407798265,1772808640367,-500.0,0.00017489,2]
[407798266,1772808640377,-500.0,0.00017489,2]
[407798267,1772808640386,-500.0,0.00017489,2]
[407798268,1772808640395,-200.0,0.00017492,2]
[407798269,1772808640405,-5000.0,0.000175,2]
[407798270,1772808640414,-151.0,0.000175,2]
[407798271,1772808640424,-2000.23,0.0001751,7]
[407798272,1772808640434,-500.0,0.0001752,2]
[407798273,1772808640444,-1500.0,0.00017568,2]
[407798274,1772808640454,-1000.0,0.00017568,2]
[407798275,1772808640467,-1489.71509886,0.00017568,2]
[407798276,1772808640476,-1500.0,0.00017568,2]
[407798277,1772808640485,-1057.2086331,0.00017568,2]
[407798278,1772808640495,-1500.0,0.00017568,2]
[407798279,1772808640504,-1000.0,0.00017568,2]
[407798280,1772808640514,-500.0,0.00017586,2]
[407798281,1772808640525,-180.19786508,0.00017586,2]
[407798282,1772808640534,-500.0,0.00017586,2]
[407798283,1772808640543,-500.0,0.00017586,2]
[407798284,1772808640553,-500.0,0.00017586,2]
[407798285,1772808640563,-800.0,0.00017586,2]
[407798286,1772808640573,-500.0,0.00017586,2]
[407798287,1772808640583,-431.0,0.00017586,2]
[407798288,1772808640593,-1139.0,0.00017586,2]
[407798289,1772808640602,-500.0,0.00017586,2]
[407798290,1772808640611,-1376.0,0.00017586,2]
[407798291,1772808640621,-500.0,0.00017586,2]
[407798292,1772808640630,-524.0,0.00017586,2]
[407798293,1772808640639,-166.66,0.00017599,2]
[407798294,1772808640648,-500.0,0.00017599,2]
[407798295,1772808640660,-707.0,0.00017599,2]
[407798296,1772808640669,-500.0,0.00017599,2]
[407798297,1772808640678,-2178.0,0.00017599,2]
[407798298,1772808640687,-999.0,0.00017599,2]
[407798299,1772808640696,-150.0,0.00017599,2]
[407798300,1772808640706,-500.0,0.00017599,2]
[407798301,1772808640715,-964.0,0.00017599,2]
[407798302,1772808640725,-150.0,0.00017599,2]
[407798303,1772808640736,-500.0,0.00017599,2]
[407798304,1772808640747,-150.0,0.00017599,2]
[407798305,1772808640756,-1220.0,0.00017599,2]
[407798306,1772808640766,-500.0,0.00017638,2]
[407798307,1772808640775,-349.85488597,0.00017706,2]
[407798308,1772808640785,-746.50799756,0.00017754,2]
[407798309,1772808640794,-500.0,0.00017794,2]
[407798310,1772808640803,-492.0,0.00017808,2]
[407798311,1772808640813,-800.0,0.00017808,2]
[407798312,1772808640822,-11718.12057429,0.00017857,2]
[407798313,1772808640831,-500.0,0.0001786,2]
[407798314,1772808640840,-500.0,0.0001786,2]
[407798315,1772808640850,-500.0,0.0001786,2]
[407798316,1772808640859,-500.0,0.0001786,2]
[407798317,1772808640869,-800.0,0.0001786,2]
[407798318,1772808640879,-500.0,0.0001786,2]
[407798319,1772808640890,-431.0,0.0001786,2]
[407798320,1772808640899,-1139.0,0.0001786,2]
[407798321,1772808640909,-553.09495447,0.0001786,2]
[407798322,1772808640918,-1376.0,0.0001786,2]
[407798323,1772808640929,-500.0,0.0001786,2]
[407798324,1772808640938,-524.0,0.0001786,2]
[407798325,1772808640947,-500.0,0.00017873,2]
[407798326,1772808640958,-707.0,0.00017873,2]
[407798327,1772808640967,-500.0,0.00017873,2]
[407798328,1772808640977,-2178.0,0.00017873,2]
[407798329,1772808640987,-999.0,0.00017873,2]
[407798330,1772808640996,-150.0,0.00017873,2]
[407798331,1772808641006,-500.0,0.00017873,2]
[407798332,1772808641015,-964.0,0.00017873,2]
[407798333,1772808641026,-150.0,0.00017873,2]
[407798334,1772808641035,-500.0,0.00017873,2]
[407798335,1772808641045,-189.68586623,0.00017873,2]
[407798336,1772808641055,-1220.0,0.00017873,2]
[407798337,1772808641065,-3000.0,0.0001789,2]
[407798338,1772808641076,-166.66,0.00017969,2]
[407798339,1772808641086,-1000.0,0.00017998,2]
[407798340,1772808641095,-1000.0,0.00017998,2]
[407798341,1772808641104,-1000.0,0.00017998,2]
[407798342,1772808641113,-10000.0,0.00018,2]
[407798343,1772808641122,-182.80013699,0.00018,2]
[407798344,1772808641131,-1500.18,0.00018035,7]
[407798345,1772808641140,-1000.0,0.00018035,2]
[407798346,1772808641150,-1000.0,0.00018037,2]
[407798347,1772808641160,-500.0,0.00018037,2]
[407798348,1772808641169,-494.64624274,0.00018037,2]
[407798349,1772808641179,-1000.0,0.00018037,2]
[407798350,1772808641188,-500.0,0.00018068,2]
[407798351,1772808641201,-165.22,0.00018081,2]
[407798352,1772808641212,-492.0,0.00018082,2]
[407798353,1772808641222,-312.91190958,0.00018112,2]
[407798354,1772808641231,-2000.0,0.00018116,2]
[407798355,1772808641241,-2000.0,0.00018116,2]
[407798356,1772808641250,-1278.57186039,0.00018116,2]
[407798357,1772808641260,-500.0,0.00018134,2]
[407798358,1772808641270,-500.0,0.00018134,2]
[407798359,1772808641279,-170.49208908,0.00018134,2]
[407798360,1772808641289,-400.0,0.00018134,2]
[407798361,1772808641300,-800.0,0.00018134,2]
[407798362,1772808641309,-431.0,0.00018134,2]
[407798363,1772808641318,-500.0,0.00018134,2]
[407798364,1772808641329,-1139.0,0.00018134,2]
[407798365,1772808641339,-1376.0,0.00018134,2]
[407798366,1772808641351,-500.0,0.00018134,2]
[407798367,1772808641361,-524.0,0.00018134,2]
[407798368,1772808641370,-500.0,0.00018137,2]
[407798369,1772808641380,-500.0,0.00018147,2]
[407798370,1772808641389,-707.0,0.00018147,2]
[407798371,1772808641399,-500.0,0.00018147,2]
[407798372,1772808641408,-2178.0,0.00018147,2]
[407798373,1772808641418,-999.0,0.00018147,2]
[407798374,1772808641427,-150.0,0.00018147,2]
[407798375,1772808641437,-500.0,0.00018147,2]
[407798376,1772808641447,-964.0,0.00018147,2]
[407798377,1772808641456,-150.0,0.00018147,2]
[407798378,1772808641465,-500.0,0.00018147,2]
[407798379,1772808641474,-1220.0,0.00018147,2]
[407798380,1772808641483,-1600.0,0.00018156,2]
[407798381,1772808641492,-1321.53,0.00018185,2]
[407798382,1772808641502,-29547.53,0.0001819,2]
[407798383,1772808641511,-2351.0,0.0001822,2]
[407798384,1772808641521,-11718.12057429,0.00018266,2]
[407798385,1772808641530,-166.66,0.0001834,2]
[407798386,1772808641540,-500.0,0.00018342,2]
[407798387,1772808641549,-492.0,0.00018356,2]
[407798388,1772808641558,-151.0,0.00018405,2]
[407798389,1772808641568,-500.0,0.00018408,2]
[407798390,1772808641577,-500.0,0.00018408,2]
[407798391,1772808641587,-800.0,0.00018408,2]
[407798392,1772808641596,-431.0,0.00018408,2]
[407798393,1772808641605,-500.0,0.00018408,2]
[407798394,1772808641614,-1139.0,0.00018408,2]
[407798395,1772808641623,-1376.0,0.00018408,2]
[407798396,1772808641632,-500.0,0.00018408,2]
[407798397,1772808641641,-524.0,0.00018408,2]
[407798398,1772808641650,-500.0,0.00018421,2]
[407798399,1772808641660,-707.0,0.00018421,2]
[407798400,1772808641669,-500.0,0.00018421,2]
[407798401,1772808641678,-2178.0,0.00018421,2]
[407798402,1772808641687,-999.0,0.00018421,2]
[407798403,1772808641696,-150.0,0.00018421,2]
[407798404,1772808641705,-500.0,0.00018421,2]
[407798405,1772808641714,-964.0,0.00018421,2]
[407798406,1772808641723,-150.0,0.00018421,2]
[407798407,1772808641733,-500.0,0.00018421,2]
[407798408,1772808641742,-1220.0,0.00018421,2]
[407798409,1772808641752,-3500.0,0.00018438,2]
[407798410,1772808641761,-1239.0,0.00018446,2]
[407798411,1772808641772,-746.50799756,0.0001847,2]
[407798412,1772808641781,-4833.47551649,0.000185,2]
[407798413,1772808641790,-9999.99,0.00018533,2]
[407798414,1772808641799,-1000.0,0.00018546,2]
[407798415,1772808641808,-1500.0,0.00018546,2]
[407798416,1772808641818,-1500.0,0.00018546,2]
[407798417,1772808641827,-1000.12,0.00018561,7]
[407798418,1772808641836,-1500.0,0.00018583,2]
[407798419,1772808641845,-1134.58548457,0.00018585,2]
[407798420,1772808641855,-1000.0,0.00018585,2]
[407798421,1772808641864,-573.44789223,0.00018616,2]
[407798422,1772808641873,-492.0,0.0001863,2]
[407798423,1772808641882,-1680.57628362,0.00018664,2]
[407798424,1772808641895,-2500.0,0.00018664,2]
[407798425,1772808641904,-11718.12057429,0.00018674,2]
[407798426,1772808641913,-500.0,0.00018682,2]
[407798427,1772808641922,-192.44220741,0.00018682,2]
[407798428,1772808641931,-800.0,0.00018682,2]
[407798429,1772808641941,-431.0,0.00018682,2]
[407798430,1772808641950,-500.0,0.00018682,2]
[407798431,1772808641962,-1139.0,0.00018682,2]
[407798432,1772808641972,-1376.0,0.00018682,2]
[407798433,1772808641981,-500.0,0.00018682,2]
[407798434,1772808641991,-524.0,0.00018682,2]
[407798435,1772808642000,-500.0,0.00018695,2]
[407798436,1772808642009,-707.0,0.00018695,2]
[407798437,1772808642018,-500.0,0.00018695,2]
[407798438,1772808642030,-2178.0,0.00018695,2]
[407798439,1772808642039,-999.0,0.00018695,2]
[407798440,1772808642049,-250.0,0.00018695,2]
[407798441,1772808642058,-500.0,0.00018695,2]
[407798442,1772808642068,-964.0,0.00018695,2]
[407798443,1772808642078,-250.0,0.00018695,2]
[407798444,1772808642087,-500.0,0.00018695,2]
[407798445,1772808642096,-1220.0,0.00018695,2]
[407798446,1772808642105,-166.66,0.0001871,2]
[407798447,1772808642115,-2803.0,0.0001872,2]
[407798448,1772808642124,-500.0,0.00018832,2]
[407798449,1772808642133,-492.0,0.00018904,2]
[407798450,1772808642143,-500.0,0.00018956,2]
[407798451,1772808642152,-800.0,0.00018956,2]
[407798452,1772808642161,-431.0,0.00018956,2]
[407798453,1772808642170,-500.0,0.00018956,2]
[407798454,1772808642180,-1139.0,0.00018956,2]
[407798455,1772808642189,-1376.0,0.00018956,2]
[407798456,1772808642199,-500.0,0.00018956,2]
[407798457,1772808642208,-524.0,0.00018956,2]
[407798458,1772808642218,-500.0,0.00018969,2]
[407798459,1772808642227,-707.0,0.00018969,2]
[407798460,1772808642236,-500.0,0.00018969,2]
[407798461,1772808642246,-2178.0,0.00018969,2]
[407798462,1772808642255,-999.0,0.00018969,2]
[407798463,1772808642264,-348.93054391,0.00018969,2]
[407798465,1772808642277,-964.0,0.00018969,2]
[407798466,1772808642286,-500.0,0.00018969,2]
[407798468,1772808642295,-1220.0,0.00018969,2]
[407798470,1772808642304,-682.34,0.00018999,2]
[407798472,1772808642313,-350.0,0.00019,2]
[407798474,1772808642323,-10000.0,0.00019,2]
[407798476,1772808642333,-5026.57882922,0.00019,2]
[407798478,1772808642343,-5000.0,0.00019,2]
[407798480,1772808642352,-5000.0,0.00019,2]
[407798481,1772808642361,-15095.69362712,0.00019,2]
[407798484,1772808642371,-166.66,0.00019081,2]
[407798485,1772808642380,-11718.12057429,0.00019083,2]
[407798486,1772808642389,-168.0,0.00019086,2]
[407798487,1772808642398,-2000.0,0.00019094,2]
[407798488,1772808642407,-2046.47179689,0.00019094,2]
[407798489,1772808642417,-2000.0,0.00019131,2]
[407798490,1772808642426,-355.08533532,0.00019168,2]
[407798491,1772808642435,-492.0,0.00019178,2]
[407798492,1772808642444,-3000.0,0.00019178,2]
[407798493,1772808642454,-3000.0,0.00019178,7]
[407798494,1772808642463,-150.0,0.00019178,2]
[407798495,1772808642473,-746.50799756,0.00019185,2]
[407798496,1772808642482,-168.0,0.00019198,2]
[407798497,1772808642491,-3000.0,0.00019212,2]
[407798498,1772808642500,-500.0,0.0001923,2]
[407798499,1772808642510,-800.0,0.0001923,2]
[407798500,1772808642519,-431.0,0.0001923,2]
[407798501,1772808642530,-500.0,0.0001923,2]
[407798502,1772808642539,-1139.0,0.0001923,2]
[407798503,1772808642548,-1376.0,0.0001923,2]
[407798504,1772808642558,-500.0,0.0001923,2]
[407798505,1772808642567,-524.0,0.0001923,2]
[407798506,1772808642577,-500.0,0.00019243,2]
[407798507,1772808642586,-707.0,0.00019243,2]
[407798508,1772808642595,-627.92320677,0.00019243,2]
[407798509,1772808642605,-2178.0,0.00019243,2]
[407798510,1772808642614,-999.0,0.00019243,2]
[407798511,1772808642623,-964.0,0.00019243,2]
[407798512,1772808642631,-500.0,0.00019243,2]
[407798513,1772808642641,-1220.0,0.00019243,2]
[407798514,1772808642650,-168.0,0.00019315,2]
[407798515,1772808642659,-166.66,0.00019451,2]
[407798516,1772808642667,-492.0,0.00019452,2]
[407798517,1772808642676,-258.69744367,0.00019466,2]
[407798518,1772808642686,-11718.12057429,0.00019491,2]
[407798519,1772808642695,-500.0,0.00019504,2]
[407798520,1772808642704,-800.0,0.00019504,2]
[407798521,1772808642714,-431.0,0.00019504,2]
[407798522,1772808642723,-500.0,0.00019504,2]
[407798523,1772808642731,-1139.0,0.00019504,2]
[407798524,1772808642740,-1376.0,0.00019504,2]
[407798525,1772808642749,-500.0,0.00019504,2]
[407798526,1772808642758,-524.0,0.00019504,2]
[407798527,1772808642767,-554.63301169,0.00019517,2]
[407798528,1772808642778,-707.0,0.00019517,2]